bitfinex/quotes_SOLUSD_20251116
["timestamp","ask_amount","ask_price","bid_price","bid_amount"]
[1763306394887,0.71,140.27,140.24,7.1306332]
[1763306395306,0.71,140.27,140.24,7.7906332]
[1763306396014,0.71,140.27,140.22,7.13165026]
[1763306396201,0.71,140.27,140.22,7.79165026]
[1763306396610,0.71,140.27,140.22,7.13165026]
[1763306396904,134.69031717,140.27,140.21,0.66]
[1763306397419,0.71,140.26,140.21,0.66]
[1763306398099,127.5612,140.27,140.22,7.13165026]
[1763306398416,126.8512,140.27,140.22,24.96077591]
[1763306398610,0.71,140.26,140.22,25.62077591]
[1763306398817,0.71,140.26,140.22,24.96077591]
[1763306399015,0.71,140.26,140.23,0.66]
[1763306400029,0.71,140.26,140.24,7.1306332]
[1763306400205,126.8512,140.27,140.24,7.1306332]
[1763306400520,0.71,140.28,140.25,0.66]
[1763306400722,0.71,140.28,140.24,7.7906332]
[1763306401515,0.71,140.28,140.24,7.1306332]
[1763306402026,0.71,140.28,140.24,7.7906332]
[1763306402222,0.71,140.28,140.24,25.6172162]
[1763306402407,0.71,140.28,140.25,0.66]
[1763306402609,0.71,140.28,140.24,25.6172162]
[1763306403391,0.71,140.28,140.24,7.1306332]
[1763306403591,0.71,140.28,140.24,24.9572162]
[1763306403796,0.71,140.28,140.24,25.6172162]
[1763306404227,7.83870119,140.28,140.18,10.44882769]
[1763306404503,17.81848521,140.27,140.19,0.66]
[1763306404711,18.52848521,140.27,140.19,0.66]
[1763306404913,0.71,140.26,140.19,0.66]
[1763306405296,0.71,140.26,140.2,24.96433665]
[1763306405693,0.71,140.26,140.21,0.66]
[1763306405919,7.8396658,140.26,140.21,0.66]
[1763306406326,0.71,140.25,140.21,0.66]
[1763306406998,0.71,140.25,140.22,7.13165026]
[1763306409148,0.71,140.25,140.21,7.79199577]
[1763306410116,7.84026553,140.25,140.18,25.62738544]
[1763306410328,7.84026553,140.25,140.18,24.96738544]
[1763306410619,0.71,140.24,140.18,25.62738544]
[1763306410938,0.71,140.24,140.19,0.66]
[1763306411107,0.71,140.25,140.19,0.66]
[1763306412733,0.71,140.25,140.2,24.96433665]
[1763306413124,0.71,140.25,140.21,0.66]
[1763306414626,104.2,140.26,140.22,7.13165026]
[1763306414826,104.86,140.26,140.22,7.13165026]
[1763306415014,104.86,140.26,140.22,7.79165026]
[1763306415338,104.86,140.26,140.22,25.62077591]
[1763306415752,104.86,140.26,140.22,24.96077591]
[1763306415932,104.2,140.26,140.23,0.67]
[1763306416733,104.2,140.26,140.24,7.1306332]
[1763306417029,22.6512,140.29,140.24,7.1306332]
[1763306417344,0.69,140.28,140.25,0.67]
[1763306417723,0.69,140.28,140.24,7.8006332]
[1763306418331,0.69,140.28,140.24,25.6272162]
[1763306419149,0.69,140.28,140.25,0.67]
[1763306419553,0.69,140.28,140.24,0.67]
[1763306419727,0.69,140.28,140.23,0.67]
[1763306421126,0.69,140.28,140.24,24.9572162]
[1763306421932,0.69,140.28,140.24,25.6272162]
[1763306422836,0.69,140.28,140.24,24.9572162]
[1763306423061,30.46993689,140.28,140.2,9.78882769]
[1763306423241,30.46993689,140.28,140.18,0.67]
[1763306423242,22.6512,140.24,140.18,0.67]
[1763306423452,22.6512,140.24,140.17,7.13419419]
[1763306423752,0.69,140.23,140.17,7.13419419]
[1763306424459,0.69,140.23,140.17,25.63967967]
[1763306425046,0.69,140.23,140.18,0.67]
[1763306425252,23.3412,140.23,140.18,0.67]
[1763306425460,0.69,140.23,140.18,0.67]
[1763306426762,0.69,140.23,140.19,7.1331764]
[1763306426946,7.82127907,140.23,140.18,7.13349176]
[1763306427445,0.69,140.22,140.18,7.13349176]
[1763306428051,0.69,140.22,140.18,24.96770491]
[1763306428259,0.69,140.22,140.18,25.63770491]
[1763306428460,0.69,140.22,140.18,7.80349176]
[1763306428664,0.69,140.22,140.18,7.13349176]
[1763306429948,7.82179122,140.22,140.16,7.23459898]
[1763306430145,7.82179122,140.22,140.16,0.1]
[1763306430146,22.6512,140.18,140.16,0.1]
[1763306430363,0.69,140.17,140.16,0.1]
[1763306431769,22.6512,140.18,140.16,0.1]
[1763306431941,7.1328396,140.2,140.16,0.1]
[1763306432265,0.69,140.18,140.16,0.1]
[1763306433250,7.1328396,140.2,140.16,0.1]
[1763306433449,0.69,140.19,140.16,0.1]
[1763306433867,0.69,140.19,140.16,0.77]
[1763306434252,30.47342142,140.21,140.16,0.77]
[1763306434458,0.69,140.2,140.16,0.77]
[1763306434856,0.69,140.2,140.17,7.13419419]
[1763306435058,0.69,140.2,140.16,7.23451641]
[1763306435261,0.69,140.2,140.16,7.90451641]
[1763306435759,0.69,140.2,140.16,7.23451641]
[1763306435959,0.69,140.2,140.16,7.90451641]
[1763306437578,29.7833681,140.21,140.16,7.23451641]
[1763306437579,0.69,140.19,140.16,7.23451641]
[1763306437950,0.69,140.19,140.16,0.1]
[1763306438158,0.69,140.19,140.16,7.23459097]
[1763306440773,0.69,140.19,140.16,0.1]
[1763306440953,0.69,140.19,140.16,0.77]
[1763306441155,0.69,140.19,140.16,0.1]
[1763306441657,7.82334889,140.19,140.16,0.1]
[1763306441961,25.65628989,140.19,140.16,0.1]
[1763306442168,0.69,140.18,140.16,0.1]
[1763306443169,7.82371012,140.18,140.16,0.1]
[1763306443673,0.71,140.17,140.16,0.1]
[1763306444583,7.84419419,140.17,140.16,0.1]
[1763306446963,23.3612,140.17,140.16,0.1]
[1763306455989,30.49539419,140.17,140.16,0.1]
[1763306460387,23.3612,140.17,140.16,0.1]
[1763306461494,30.49539419,140.17,140.16,0.1]
[1763306465997,30.49539419,140.17,140.12,0.1]
[1763306465998,22.6512,140.13,140.12,0.1]
[1763306466493,23.3612,140.13,140.12,0.1]
[1763306467019,28.14775539,140.13,140.12,0.1]
[1763306467793,35.28794346,140.13,140.12,0.1]
[1763306468300,30.49743064,140.13,140.12,0.1]
[1763306469783,35.28805843,140.13,140.12,0.1]
[1763306471678,30.49743064,140.13,140.12,0.1]
[1763306473094,35.28435298,140.13,140.12,0.1]
[1763306476598,30.49743064,140.13,140.12,0.1]
[1763306477407,17.83919462,140.15,140.12,0.1]
[1763306477408,7.13579872,140.14,140.12,0.8]
[1763306477617,7.13579872,140.14,140.12,0.1]
[1763306477794,7.80579872,140.14,140.12,0.1]
[1763306478113,0.67,140.14,140.12,0.1]
[1763306479129,23.3212,140.14,140.12,0.1]
[1763306479504,30.45706417,140.14,140.12,0.1]
[1763306479818,0.67,140.13,140.12,0.1]
[1763306480602,29.78706417,140.14,140.12,0.1]
[1763306480805,30.45706417,140.14,140.12,0.1]
[1763306482517,0.67,140.13,140.12,0.1]
[1763306483012,104.2,140.16,140.13,0.7]
[1763306484298,7.80386474,140.18,140.13,0.7]
[1763306484890,5.98290209,140.24,140.14,29.78692142]
[1763306485090,7.13012477,140.25,140.14,47.62622497]
[1763306485290,0.67,140.23,140.15,0.7]
[1763306486910,0.67,140.23,140.16,24.97146118]
[1763306486911,7.80126828,140.23,140.16,24.97146118]
[1763306487394,7.80126828,140.23,140.17,0.7]
[1763306487803,10.45882769,140.22,140.15,7.13508729]
[1763306488117,10.45882769,140.22,140.15,7.83508729]
[1763306488118,15.24607458,140.22,140.15,7.83508729]
[1763306488300,0.67,140.21,140.15,7.83508729]
[1763306488896,7.13266761,140.2,140.15,7.83508729]
[1763306489392,0.67,140.19,140.16,0.7]
[1763306489593,0.67,140.19,140.15,7.13508729]
[1763306489806,0.67,140.19,140.15,7.83508729]
[1763306490011,0.67,140.19,140.15,0.7]
[1763306490700,0.67,140.19,140.15,7.83516099]
[1763306491214,0.67,140.19,140.16,0.7]
[1763306491510,0.67,140.19,140.15,7.13516099]
[1763306491709,0.67,140.19,140.15,7.83516099]
[1763306492224,0.67,140.19,140.16,0.7]
[1763306492800,12.58772036,140.21,140.16,0.7]
[1763306493109,0.67,140.2,140.16,0.7]
[1763306494311,112.00275896,140.2,140.16,7.83446851]
[1763306496329,0.67,140.19,140.16,7.83446851]
[1763306497330,104.2,140.18,140.13,7.83610233]
[1763306497523,104.2,140.18,140.13,0.7]
[1763306497824,0.67,140.17,140.14,0.7]
[1763306499950,104.2,140.18,140.14,7.83565872]
[1763306500436,104.2,140.18,140.15,0.7]
[1763306501008,104.2,140.18,140.15,7.83488423]
[1763306504037,0.71,140.17,140.14,7.13555335]
[1763306504424,0.71,140.17,140.14,7.83555335]
[1763306506544,112.04368897,140.18,140.14,7.83555335]
[1763306509324,111.33368897,140.18,140.14,7.83555335]
[1763306509518,0.71,140.17,140.14,7.83555335]
[1763306510237,0.71,140.17,140.13,7.13605327]
[1763306510420,0.71,140.17,140.13,7.83605327]
[1763306510928,0.71,140.17,140.14,0.7]
[1763306511523,0.71,140.17,140.14,7.83556716]
[1763306512121,104.2,140.18,140.15,0.7]
[1763306513047,104.91,140.18,140.15,0.7]
[1763306514362,104.91,140.18,140.16,7.13470319]
[1763306515441,104.91,140.18,140.15,7.83510671]
[1763306518532,104.2,140.18,140.15,7.13510671]
[1763306518733,0.71,140.17,140.13,7.13623064]
[1763306519150,0.71,140.17,140.13,7.83623064]
[1763306519557,0.71,140.17,140.14,0.7]
[1763306520138,0.71,140.17,140.14,7.83566153]
[1763306520856,104.91,140.23,140.15,0.7]
[1763306521166,5.98290209,140.26,140.15,0.7]
[1763306521167,5.50235105,140.22,140.15,0.7]
[1763306521341,0.71,140.22,140.15,0.7]
[1763306521658,0.71,140.21,140.15,0.7]
[1763306522247,0.71,140.21,140.16,7.13470319]
[1763306522933,0.71,140.21,140.16,7.83470319]
[1763306523427,0.71,140.21,140.16,7.13470319]
[1763306523627,0.71,140.21,140.15,17.83732718]
[1763306523628,0.71,140.21,140.17,7.83371615]
[1763306523853,7.84232185,140.21,140.14,30.48692142]
[1763306524050,9.78882769,140.2,140.14,7.83572142]
[1763306524363,15.29117874,140.2,140.14,7.83572142]
[1763306524659,0.71,140.19,140.14,7.83572142]
[1763306525359,7.84332075,140.19,140.14,7.83572142]
[1763306525564,5.50235105,140.19,140.15,0.7]
[1763306525758,40.48159726,140.21,140.15,0.7]
[1763306525759,4.79235105,140.2,140.15,0.7]
[1763306526062,0.71,140.21,140.15,0.7]
[1763306526238,0.71,140.2,140.15,0.7]
[1763306526951,0.71,140.2,140.14,24.97502497]
[1763306527354,5.50235105,140.2,140.14,25.67502497]
[1763306527652,12.63531526,140.2,140.14,25.67502497]
[1763306527854,0.71,140.19,140.14,25.67502497]
[1763306528554,0.71,140.19,140.15,7.83483672]
[1763306529677,0.71,140.19,140.15,7.13483672]
[1763306529974,0.71,140.22,140.16,0.7]
[1763306530167,5.51872129,140.22,140.16,0.7]
[1763306531162,0.71,140.21,140.17,7.13419419]
[1763306531348,5.51872129,140.21,140.17,7.13419419]
[1763306531552,0.71,140.21,140.18,0.7]
[1763306531771,5.51872129,140.21,140.18,0.7]
[1763306531980,0.71,140.21,140.18,0.7]
[1763306532379,5.51872129,140.22,140.18,0.7]
[1763306532577,4.80872129,140.23,140.18,0.7]
[1763306532765,4.80872129,140.22,140.18,0.7]
[1763306533156,0.71,140.22,140.19,7.1331764]
[1763306533357,5.51872129,140.23,140.19,7.1331764]
[1763306533556,5.51872129,140.23,140.2,0.68]
[1763306533883,0.68,140.22,140.19,7.8131764]
[1763306534554,4.80872129,140.23,140.19,7.1331764]
[1763306534753,5.48872129,140.23,140.2,0.68]
[1763306535178,0.68,140.22,140.19,7.8031764]
[1763306535390,5.48872129,140.23,140.19,7.8031764]
[1763306535857,5.48872129,140.23,140.19,7.1331764]
[1763306536182,5.48872129,140.23,140.19,7.8031764]
[1763306537785,4.80872129,140.23,140.19,7.8031764]
[1763306537981,0.68,140.22,140.19,7.8031764]
[1763306539179,4.80872129,140.23,140.19,7.1331764]
[1763306539489,5.48872129,140.23,140.19,7.8031764]
[1763306539680,0.68,140.22,140.19,7.8031764]
[1763306540381,5.48872129,140.23,140.19,7.8031764]
[1763306540562,5.48872129,140.23,140.19,25.6361174]
[1763306540767,4.80872129,140.23,140.2,0.67]
[1763306542469,4.80872129,140.23,140.21,7.1321589]
[1763306542972,4.80872129,140.23,140.21,7.8021589]
[1763306543275,5.48872129,140.23,140.19,7.1331764]
[1763306543495,0.68,140.23,140.2,0.67]
[1763306544195,104.2,140.24,140.2,0.67]
[1763306544376,104.88,140.24,140.2,0.67]
[1763306544561,104.88,140.24,140.21,7.1321589]
[1763306544989,104.88,140.24,140.21,7.8021589]
[1763306545360,0.68,140.23,140.21,7.1321589]
[1763306545561,0.68,140.23,140.19,7.13314844]
[1763306545760,0.68,140.23,140.19,7.80314844]
[1763306546370,0.68,140.23,140.19,25.63608944]
[1763306548485,0.68,140.23,140.2,0.67]
[1763306550301,0.68,140.23,140.21,7.1321589]
[1763306551364,0.68,140.23,140.2,7.13232063]
[1763306551680,0.68,140.23,140.19,7.13316101]
[1763306551879,7.81122311,140.23,140.19,7.13316101]
[1763306552194,0.68,140.23,140.19,7.13316101]
[1763306552368,0.68,140.22,140.19,7.13316101]
[1763306556479,7.81175202,140.22,140.16,22.6512]
[1763306556988,0.68,140.21,140.16,22.6512]
[1763306557290,0.68,140.21,140.17,7.13419419]
[1763306557480,0.68,140.22,140.17,7.80419419]
[1763306557682,0.68,140.21,140.18,0.67]
[1763306557877,0.68,140.21,140.17,7.80419419]
[1763306558407,0.68,140.21,140.17,25.63967967]
[1763306559180,0.68,140.21,140.18,0.67]
[1763306559384,0.68,140.21,140.17,24.96967967]
[1763306559581,0.68,140.21,140.18,0.67]
[1763306559989,0.68,140.21,140.17,25.63967967]
[1763306561896,0.68,140.21,140.18,0.67]
[1763306562592,0.68,140.21,140.17,24.96967967]
[1763306562778,0.68,140.21,140.17,7.13419419]
[1763306563788,0.68,140.21,140.17,7.81419419]
[1763306565480,7.81231332,140.21,140.17,7.13419419]
[1763306565902,0.72,140.2,140.17,7.13419419]
[1763306567186,11.92222143,140.22,140.18,0.68]
[1763306567507,0.72,140.21,140.18,0.68]
[1763306567885,0.72,140.21,140.17,7.13419419]
[1763306568092,0.72,140.21,140.17,7.81419419]
[1763306568809,0.72,140.21,140.17,25.64967967]
[1763306569217,0.72,140.21,140.18,0.68]
[1763306571013,0.72,140.21,140.19,7.1331764]
[1763306575593,5.51241119,140.23,140.19,7.1331764]
[1763306575807,0.72,140.22,140.19,7.8131764]
[1763306576314,0.72,140.22,140.19,25.6461174]
[1763306577396,4.79241119,140.23,140.2,0.68]
[1763306577600,0.72,140.23,140.2,0.68]
[1763306578123,5.52138003,140.25,140.2,0.68]
[1763306578296,0.72,140.24,140.2,0.68]
[1763306578493,0.72,140.24,140.21,7.1321589]
[1763306579016,0.72,140.24,140.21,7.8121589]
[1763306579711,0.72,140.24,140.21,25.64255616]
[1763306580415,4.80138003,140.26,140.22,0.68]
[1763306580726,201.62776352,140.34,140.23,7.13114169]
[1763306580727,0.72,140.3,140.23,7.13114169]
[1763306581019,5.00152811,140.32,140.26,22.6512]
[1763306581194,0.2,140.32,140.27,0.68]
[1763306581610,0.92,140.32,140.27,0.68]
[1763306582201,0.72,140.31,140.27,0.68]
[1763306582692,0.72,140.31,140.28,7.12859994]
[1763306583101,0.72,140.31,140.26,22.6512]
[1763306583313,0.72,140.31,140.25,17.82496118]
[1763306583521,0.72,140.31,140.25,18.50496118]
[1763306584417,7.84718546,140.31,140.26,7.12959204]
[1763306584798,0.72,140.3,140.26,7.12959204]
[1763306586022,112.04775118,140.3,140.24,29.78139739]
[1763306586324,112.04775118,140.3,140.24,7.13019739]
[1763306586522,0.72,140.29,140.24,7.13019739]
[1763306586730,0.72,140.29,140.25,0.68]
[1763306589326,0.72,140.29,140.26,7.12961642]
[1763306589717,0.72,140.29,140.25,7.81002629]
[1763306590026,0.72,140.29,140.25,25.63533823]
[1763306594632,0.72,140.29,140.25,7.13002629]
[1763306595924,0.72,140.29,140.25,7.82002629]
[1763306596636,0.72,140.29,140.25,7.13002629]
[1763306596812,0.72,140.29,140.25,7.82002629]
[1763306598036,0.72,140.29,140.24,7.8206332]
[1763306598333,0.72,140.29,140.24,30.4718332]
[1763306598624,0.72,140.29,140.25,0.69]
[1763306599217,7.84809264,140.29,140.24,7.1306332]
[1763306599629,0.67,140.28,140.24,7.1306332]
[1763306600530,0.67,140.28,140.24,7.8206332]
[1763306603034,7.79868657,140.28,140.23,24.95839565]
[1763306603441,0.67,140.27,140.23,24.95839565]
[1763306603608,0.67,140.27,140.23,25.64839565]
[1763306604946,0.67,140.27,140.23,7.13114169]
[1763306605137,7.79930461,140.27,140.22,7.13158338]
[1763306605328,0.67,140.26,140.22,7.13158338]
[1763306607352,7.79972057,140.26,140.22,7.13158338]
[1763306608742,0.67,140.25,140.22,7.13158338]
[1763306612350,7.80017953,140.25,140.2,7.13266761]
[1763306612845,0.67,140.24,140.2,7.82266761]
[1763306616452,0.67,140.24,140.19,0.69]
[1763306617955,7.80065506,140.24,140.19,0.69]
[1763306618339,0.67,140.23,140.19,0.69]
[1763306618743,7.8011436,140.23,140.18,18.52363406]
[1763306619243,0.67,140.22,140.18,18.52363406]
[1763306619752,16.91895246,140.25,140.19,7.82313563]
[1763306620058,17.58895246,140.25,140.19,7.82313563]
[1763306620242,0.67,140.24,140.19,7.82313563]
[1763306620839,0.67,140.24,140.19,7.13313563]
[1763306621038,0.67,140.24,140.19,7.82313563]
[1763306621538,7.13114169,140.23,140.18,7.82368526]
[1763306622051,0.67,140.22,140.19,0.69]
[1763306622762,0.67,140.22,140.19,7.82297924]
[1763306624163,142.55148636,140.25,140.19,24.96592024]
[1763306624348,0.72,140.24,140.2,0.66]
[1763306626756,7.85063832,140.24,140.2,7.79238818]
[1763306627459,0.72,140.23,140.2,7.79238818]
[1763306637462,0.72,140.23,140.19,7.13296907]
[1763306637651,0.72,140.23,140.19,7.79296907]
[1763306637843,0.72,140.23,140.19,7.13296907]
[1763306638042,0.72,140.23,140.2,0.66]
[1763306639477,9.78882769,140.22,140.16,7.13470319]
[1763306639973,0.72,140.21,140.16,7.13470319]
[1763306640280,0.72,140.21,140.16,7.79470319]
[1763306640652,0.72,140.21,140.17,0.66]
[1763306641466,7.8521826,140.21,140.17,0.66]
[1763306641777,7.8521826,140.21,140.16,7.79470319]
[1763306641962,0.72,140.2,140.16,7.79470319]
[1763306642751,0.72,140.2,140.17,0.66]
[1763306643055,0.72,140.2,140.17,7.79401843]
[1763306644578,0.72,140.2,140.17,7.13401843]
[1763306645045,7.85269219,140.2,140.16,7.79468042]
[1763306645469,0.72,140.19,140.16,7.79468042]
[1763306645670,7.85237196,140.21,140.16,7.79468042]
[1763306645864,0.72,140.2,140.13,44.08666139]
[1763306646069,0.72,140.2,140.14,7.79572142]
[1763306646268,24.9661174,140.19,140.13,0.66]
[1763306646657,0.72,140.18,140.13,0.66]
[1763306646867,5.50702206,140.18,140.13,0.66]
[1763306647288,0.72,140.17,140.12,7.23673116]
[1763306648064,0.72,140.17,140.12,7.89673116]
[1763306648679,7.85423864,140.17,140.12,7.23673116]
[1763306649071,7.85423864,140.17,140.12,0.1]
[1763306649072,0.72,140.16,140.12,0.1]
[1763306649379,9.78882769,140.15,140.12,0.1]
[1763306649763,0.72,140.14,140.12,0.1]
[1763306650258,7.85613962,140.14,140.12,0.1]
[1763306650462,0.72,140.13,140.12,0.1]
[1763306656269,16.92420775,140.15,140.12,0.8]
[1763306657467,17.59420775,140.15,140.12,0.8]
[1763306660298,10.45882769,140.14,140.12,0.1]
[1763306660674,7.80623064,140.13,140.12,0.1]
[1763306662396,16.92472808,140.14,140.12,0.1]
[1763306662606,17.59472808,140.14,140.12,0.1]
[1763306664180,16.92335273,140.17,140.13,0.7]
[1763306664689,17.59335273,140.17,140.13,0.7]
[1763306665488,9.78882769,140.17,140.13,0.7]
[1763306665690,16.92316614,140.17,140.13,0.7]
[1763306665894,17.59316614,140.17,140.13,0.7]
[1763306666407,16.92316614,140.17,140.13,0.7]
[1763306666713,17.59316614,140.17,140.13,0.7]
[1763306672186,9.78882769,140.15,140.12,0.1]
[1763306672599,10.45882769,140.15,140.12,0.1]
[1763306672800,10.45882769,140.15,140.12,0.8]
[1763306673505,9.78882769,140.13,140.12,0.1]
[1763306673890,23.3212,140.13,140.12,0.1]
[1763306674091,30.45743064,140.13,140.12,0.1]
[1763306676380,40.24625833,140.13,140.12,0.1]
[1763306677592,45.01140571,140.13,140.12,0.1]
[1763306678486,22.6512,140.09,140.05,0.1]
[1763306678697,9.78882769,140.08,140.05,0.8]
[1763306679025,10.45882769,140.08,140.05,0.1]
[1763306679207,0.67,140.07,140.05,0.1]
[1763306680547,7.80965371,140.07,140.05,0.1]
[1763306680696,9.78882769,140.06,140.05,0.1]
[1763306681015,10.45882769,140.06,140.05,0.1]
[1763306681216,13.44793026,140.06,140.05,0.1]
[1763306682214,10.45882769,140.06,140.05,0.1]
[1763306682432,13.44793026,140.06,140.05,0.1]
[1763306682608,20.58772748,140.06,140.05,0.1]
[1763306684412,43.23892748,140.06,140.05,0.1]
[1763306684833,24.37435149,140.06,140.04,0.1]
[1763306685000,11.70260745,140.02,140.01,0.1]
[1763306685203,12.38260745,140.02,140.01,0.1]
[1763306685609,15.24516872,140.02,140.01,0.1]
[1763306686327,12.38260745,140.02,140.01,0.1]
[1763306686531,19.52444433,140.02,140.01,0.1]
[1763306686930,19.52444433,140.02,139.99,0.1]
[1763306686931,32.44002769,140.0,139.99,0.1]
[1763306687111,34.35380745,140.0,139.99,0.1]
[1763306687315,36.94758721,140.0,139.99,1e-08]
[1763306687904,35.03380745,140.0,139.99,1e-08]
[1763306688238,35.03380745,140.0,139.87,0.69]
[1763306688239,9.78882769,139.95,139.87,0.69]
[1763306688422,1.91377976,139.9,139.87,0.69]
[1763306688600,9.06190434,139.9,139.87,0.69]
[1763306689317,1.91377976,139.9,139.87,0.69]
[1763306689699,9.06181863,139.9,139.87,0.69]
[1763306690214,1.91377976,139.9,139.87,0.69]
[1763306690612,22.6512,139.92,139.87,9.75321014]
[1763306690927,24.56497976,139.92,139.87,9.75321014]
[1763306691121,24.56497976,139.92,139.88,2.60377976]
[1763306691433,11.70260745,139.91,139.88,0.69]
[1763306692731,11.70260745,139.91,139.78,1.99999999]
[1763306692732,9.78882769,139.88,139.85,0.69]
[1763306692936,1.91377976,139.87,139.85,0.69]
[1763306693107,12.38260745,139.88,139.85,0.69]
[1763306693309,1.91377976,139.87,139.85,0.69]
[1763306693507,1.91377976,139.87,139.82,1.91377976]
[1763306693508,1.91377976,139.87,139.84,0.69]
[1763306694825,1.91377976,139.89,139.84,9.75476514]
[1763306695127,1.91377976,139.91,139.86,1.91377976]
[1763306695311,9.78882769,139.91,139.86,1.91377976]
[1763306695513,11.70260745,139.91,139.87,0.69]
[1763306696814,1.91377976,139.88,139.85,7.15242058]
[1763306697011,22.6512,139.89,139.86,0.69]
[1763306697208,11.70260745,139.9,139.86,0.69]
[1763306697415,11.70260745,139.9,139.86,2.60377976]
[1763306697934,11.70260745,139.9,139.87,0.69]
[1763306698237,9.78882769,139.9,139.87,0.69]
[1763306698628,9.06176413,139.9,139.87,0.69]
[1763306700131,18.85059182,139.9,139.87,0.69]
[1763306700310,18.85059182,139.9,139.85,1.91377976]
[1763306700311,2.59377976,139.89,139.85,18.56920466]
[1763306700508,7.14898484,139.88,139.84,1.91377976]
[1763306700720,9.0627646,139.88,139.85,0.69]
[1763306701632,1.91377976,139.86,139.82,2.60377976]
[1763306701821,1.91377976,139.86,139.82,0.69]
[1763306702030,1.91377976,139.85,139.82,0.69]
[1763306702351,1.91377976,139.85,139.78,17.88478959]
[1763306702352,1.91377976,139.83,139.78,0.69]
[1763306702527,1.91377976,139.81,139.77,0.69]
[1763306702727,33.12002769,139.84,139.76,0.69]
[1763306702728,1.91377976,139.79,139.76,0.69]
[1763306702933,7.15205263,139.82,139.77,2.60377976]
[1763306703113,7.15205263,139.82,139.77,9.78882769]
[1763306703114,11.70260745,139.81,139.77,9.78882769]
[1763306703452,1.91377976,139.78,139.74,0.69]
[1763306704107,0.68,139.78,139.74,0.69]
[1763306704322,1.91377976,139.75,139.72,0.79]
[1763306704533,9.78882769,139.76,139.72,0.79]
[1763306704729,9.78882769,139.76,139.72,9.86084352]
[1763306704730,1.91377976,139.76,139.72,9.86084352]
[1763306705235,1.91377976,139.76,139.73,0.69]
[1763306705439,29.80391623,139.81,139.75,1.91377976]
[1763306705640,11.70260745,139.8,139.73,0.69]
[1763306705939,11.70260745,139.8,139.75,1.91377976]
[1763306706123,1.91377976,139.79,139.75,1.91377976]
[1763306706316,1.91377976,139.79,139.76,0.69]
[1763306706531,10.46882769,139.8,139.76,0.69]
[1763306706737,1.91377976,139.79,139.76,0.69]
[1763306706939,19.5357591,139.8,139.76,0.69]
[1763306707452,1.91377976,139.78,139.74,0.69]
[1763306708436,9.06801293,139.78,139.74,2.60377976]
[1763306708640,9.74801293,139.78,139.74,2.60377976]
[1763306708856,9.74801293,139.78,139.74,0.69]
[1763306709450,1.91377976,139.77,139.74,0.69]
[1763306709645,2.59377976,139.77,139.73,1.91377976]
[1763306709850,0.68,139.76,139.72,9.17083495]
[1763306710035,2.59377976,139.76,139.72,9.17083495]
[1763306710232,2.59377976,139.76,139.72,2.70377976]
[1763306710752,5.34887811,139.76,139.72,12.61602499]
[1763306710957,4.66887811,139.77,139.73,5.35887811]
[1763306711156,9.78882769,139.77,139.73,0.69]
[1763306711333,9.78882769,139.77,139.74,5.35887811]
[1763306711654,9.78882769,139.78,139.75,4.66887811]
[1763306711843,9.78882769,139.78,139.75,5.35887811]
[1763306712153,9.78882769,139.78,139.75,0.69]
[1763306712562,14.4577058,139.8,139.75,0.69]
[1763306712742,7.83378964,139.79,139.76,4.66887811]
[1763306712944,0.68,139.79,139.75,5.35887811]
[1763306713142,7.83370528,139.79,139.75,5.35887811]
[1763306713338,7.83370528,139.79,139.75,0.69]
[1763306713534,12.50258339,139.79,139.75,5.35887811]